[Event "Titled Tuesday Blitz June 21 Late 2022"]
[White "Fiol, Fabrice"]
[Black "Moussard, Jules"]
[WhiteFideId "611670"]
[BlackFideId "642908"]
[WhiteElo "2483"]
[BlackElo "2589"]
[Result "0-1"]
[Round "01"]
[TimeControl "180+1"]
[Date "2022.06.21"]
[WhiteClock "0:00:05"]
[BlackClock "0:00:06"]

1. e4 {[%clk 0:02:58]}  c5 {[%clk 0:02:55]} 2. Nf3 {[%clk 0:02:58]}  e6 {[%clk 0:02:55]} 3. d4 {[%clk 0:02:58]}  cxd4 {[%clk 0:02:56]} 4. Nxd4 {[%clk 0:02:58]}  Nc6 {[%clk 0:02:55]} 5. Nc3 {[%clk 0:02:57]}  Qc7 {[%clk 0:02:56]} 6. Be3 {[%clk 0:02:57]}  a6 {[%clk 0:02:55]} 7. Bd3 {[%clk 0:02:57]}  Nf6 {[%clk 0:02:54]} 8. h3 {[%clk 0:02:56]}  d6 {[%clk 0:02:51]} 9. O-O {[%clk 0:02:56]}  Be7 {[%clk 0:02:52]} 10. Nb3 {[%clk 0:02:47]}  O-O {[%clk 0:02:48]} 11. a4 {[%clk 0:02:47]}  b6 {[%clk 0:02:47]} 12. f4 {[%clk 0:02:45]}  Bb7 {[%clk 0:02:46]} 13. Qe1 {[%clk 0:02:45]}  Nd7 {[%clk 0:02:41]} 14. Qg3 {[%clk 0:02:42]}  Kh8 {[%clk 0:02:28]} 15. Rae1 {[%clk 0:02:40]}  Rac8 {[%clk 0:02:23]} 16. f5 {[%clk 0:02:34]}  Bf6 {[%clk 0:02:21]} 17. Bg5 {[%clk 0:02:27]}  Bxg5 {[%clk 0:02:19]} 18. Qxg5 {[%clk 0:02:27]}  Nce5 {[%clk 0:02:10]} 19. Kh1 {[%clk 0:02:17]}  Qd8 {[%clk 0:02:03]} 20. Qg3 {[%clk 0:02:09]}  Qe7 {[%clk 0:01:57]} 21. Nd4 {[%clk 0:02:02]}  Nc5 {[%clk 0:01:56]} 22. Rd1 {[%clk 0:01:16]}  Rg8 {[%clk 0:01:40]} 23. Nf3 {[%clk 0:01:10]}  exf5 {[%clk 0:01:36]} 24. Nd5 {[%clk 0:01:03]}  Bxd5 {[%clk 0:01:33]} 25. exd5 {[%clk 0:01:03]}  g6 {[%clk 0:01:31]} 26. Ng5 {[%clk 0:00:52]}  h6 {[%clk 0:01:27]} 27. Nf3 {[%clk 0:00:49]}  Rge8 {[%clk 0:01:27]} 28. Nd4 {[%clk 0:00:45]}  Ncxd3 {[%clk 0:01:24]} 29. cxd3 {[%clk 0:00:45]}  Qg5 {[%clk 0:01:24]} 30. Qf2 {[%clk 0:00:36]}  Rc5 {[%clk 0:01:24]} 31. Ne6 {[%clk 0:00:22]}  fxe6 {[%clk 0:01:21]} 32. d4 {[%clk 0:00:22]}  Rxd5 {[%clk 0:01:18]} 33. dxe5 {[%clk 0:00:22]}  Rxe5 {[%clk 0:01:03]} 34. Rxd6 {[%clk 0:00:21]}  Re4 {[%clk 0:00:44]} 35. Rxb6 {[%clk 0:00:18]}  Rxa4 {[%clk 0:00:43]} 36. Qc5 {[%clk 0:00:14]}  Qf6 {[%clk 0:00:41]} 37. Rb7 {[%clk 0:00:12]}  Rg8 {[%clk 0:00:14]} 38. Rd1 {[%clk 0:00:09]}  Rg7 {[%clk 0:00:06]} 39. Rb8+ {[%clk 0:00:09]}  Kh7 {[%clk 0:00:06]} 40. Rdd8 {[%clk 0:00:09]}  g5 {[%clk 0:00:06]} 41. Rh8+ {[%clk 0:00:08]}  Kg6 {[%clk 0:00:06]} 42. Rbg8 {[%clk 0:00:05]}  Ra1+ {[%clk 0:00:06]} 43. Kh2 {[%clk 0:00:05]}  Re1 {[%clk 0:00:06]} 0-1


[Site "https://www.chess.com"]

[Event "Titled Tuesday Blitz June 21 Late 2022"]
[White "Fishbein, Mitch"]
[Black "Bilych, Olexiy"]
[WhiteFideId "30922917"]
[BlackFideId "14156504"]
[WhiteElo "1939"]
[BlackElo "2189"]
[Result "0-1"]
[Round "01"]
[TimeControl "180+1"]
[Date "2022.06.22"]
[WhiteClock "0:00:06"]
[BlackClock "0:00:06"]

1. e4 {[%clk 0:02:58]}  c5 {[%clk 0:03:00]} 2. Nf3 {[%clk 0:02:58]}  d6 {[%clk 0:03:00]} 3. c3 {[%clk 0:02:58]}  Nf6 {[%clk 0:02:59]} 4. Be2 {[%clk 0:02:58]}  g6 {[%clk 0:02:56]} 5. O-O {[%clk 0:02:58]}  Bg7 {[%clk 0:02:57]} 6. Re1 {[%clk 0:02:59]}  O-O {[%clk 0:02:56]} 7. Bf1 {[%clk 0:02:59]}  Nc6 {[%clk 0:02:50]} 8. d3 {[%clk 0:02:59]}  Bg4 {[%clk 0:02:38]} 9. Be3 {[%clk 0:02:55]}  Nd7 {[%clk 0:02:36]} 10. Nbd2 {[%clk 0:02:52]}  b5 {[%clk 0:02:34]} 11. h3 {[%clk 0:02:50]}  Bxf3 {[%clk 0:02:33]} 12. Nxf3 {[%clk 0:02:51]}  b4 {[%clk 0:02:11]} 13. d4 {[%clk 0:02:48]}  Rb8 {[%clk 0:02:07]} 14. Qd2 {[%clk 0:02:47]}  bxc3 {[%clk 0:02:05]} 15. bxc3 {[%clk 0:02:46]}  Qa5 {[%clk 0:02:05]} 16. Qd3 {[%clk 0:02:21]}  Rfc8 {[%clk 0:01:58]} 17. Rec1 {[%clk 0:01:57]}  cxd4 {[%clk 0:01:28]} 18. cxd4 {[%clk 0:01:56]}  Nb4 {[%clk 0:01:22]} 19. Qd2 {[%clk 0:01:42]}  Qa4 {[%clk 0:01:20]} 20. Bc4 {[%clk 0:01:22]}  Nb6 {[%clk 0:01:00]} 21. Bb3 {[%clk 0:01:22]}  Qa3 {[%clk 0:01:01]} 22. Ng5 {[%clk 0:01:12]}  d5 {[%clk 0:01:00]} 23. Rc5 {[%clk 0:01:04]}  Rxc5 {[%clk 0:00:48]} 24. dxc5 {[%clk 0:01:05]}  Bxa1 {[%clk 0:00:49]} 25. cxb6 {[%clk 0:01:05]}  axb6 {[%clk 0:00:49]} 26. exd5 {[%clk 0:01:03]}  Na6 {[%clk 0:00:18]} 27. d6 {[%clk 0:01:00]}  Qxd6 {[%clk 0:00:18]} 28. Bxf7+ {[%clk 0:00:54]}  Kg7 {[%clk 0:00:18]} 29. Qc1 {[%clk 0:00:53]}  Bf6 {[%clk 0:00:17]} 30. Ne4 {[%clk 0:00:52]}  Qe5 {[%clk 0:00:10]} 31. Nxf6 {[%clk 0:00:44]}  Qxf6 {[%clk 0:00:06]} 32. Bb3 {[%clk 0:00:43]}  Nc5 {[%clk 0:00:06]} 33. Bh6+ {[%clk 0:00:42]}  Kh8 {[%clk 0:00:05]} 34. Bc4 {[%clk 0:00:22]}  Rd8 {[%clk 0:00:05]} 35. Qc2 {[%clk 0:00:19]}  Qd4 {[%clk 0:00:05]} 36. Kh2 {[%clk 0:00:14]}  Qe5+ {[%clk 0:00:05]} 37. g3 {[%clk 0:00:11]}  Ne4 {[%clk 0:00:05]} 38. Bf4 {[%clk 0:00:08]}  Qd4 {[%clk 0:00:04]} 39. Kg2 {[%clk 0:00:05]}  Nf6 {[%clk 0:00:03]} 40. Bc1 {[%clk 0:00:05]}  Rc8 {[%clk 0:00:04]} 41. Bb2 {[%clk 0:00:05]}  Qxc4 {[%clk 0:00:04]} 42. Bxf6+ {[%clk 0:00:05]}  exf6 {[%clk 0:00:04]} 43. Qd2 {[%clk 0:00:06]}  Qc6+ {[%clk 0:00:04]} 44. Kh2 {[%clk 0:00:05]}  Kg7 {[%clk 0:00:05]} 45. Qd4 {[%clk 0:00:06]}  Rc7 {[%clk 0:00:06]} 46. h4 {[%clk 0:00:06]}  Rd7 {[%clk 0:00:06]} 47. Qe4 {[%clk 0:00:06]}  Qxe4 {[%clk 0:00:06]} 0-1


[Site "https://www.chess.com"]

[Event "Titled Tuesday Blitz June 21 Late 2022"]
[White "Flynn, Jacob"]
[Black "Diaz Rosas, Julio Cesar"]
[WhiteFideId "2509393"]
[BlackFideId "5105099"]
[WhiteElo "1896"]
[BlackElo "2278"]
[Result "0-1"]
[Round "01"]
[TimeControl "180+1"]
[Date "2022.06.22"]
[WhiteClock "0:01:49"]
[BlackClock "0:01:50"]

1. d4 {[%clk 0:02:56]}  d5 {[%clk 0:02:59]} 2. c4 {[%clk 0:02:53]}  e6 {[%clk 0:02:59]} 3. Nc3 {[%clk 0:02:53]}  a6 {[%clk 0:02:58]} 4. cxd5 {[%clk 0:02:54]}  exd5 {[%clk 0:02:59]} 5. Qb3 {[%clk 0:02:49]}  c6 {[%clk 0:02:57]} 6. Bf4 {[%clk 0:02:41]}  Nf6 {[%clk 0:02:51]} 7. e3 {[%clk 0:02:40]}  Bd6 {[%clk 0:02:31]} 8. Bxd6 {[%clk 0:02:39]}  Qxd6 {[%clk 0:02:31]} 9. Nf3 {[%clk 0:02:40]}  O-O {[%clk 0:02:31]} 10. Bd3 {[%clk 0:02:40]}  Re8 {[%clk 0:02:31]} 11. O-O {[%clk 0:02:38]}  Nbd7 {[%clk 0:02:31]} 12. a4 {[%clk 0:02:25]}  Nf8 {[%clk 0:02:23]} 13. a5 {[%clk 0:02:23]}  Ng6 {[%clk 0:02:22]} 14. Na4 {[%clk 0:02:11]}  Ne4 {[%clk 0:02:13]} 15. Rac1 {[%clk 0:02:03]}  Bg4 {[%clk 0:01:55]} 16. Qxb7 {[%clk 0:02:02]}  Bxf3 {[%clk 0:01:55]} 17. Rxc6 {[%clk 0:01:57]}  Qd8 {[%clk 0:01:54]} 18. gxf3 {[%clk 0:01:50]}  Qg5+ {[%clk 0:01:51]} 19. Kh1 {[%clk 0:01:49]}  Nh4 {[%clk 0:01:50]} 0-1


[Site "https://www.chess.com"]

[Event "Titled Tuesday Blitz June 21 Late 2022"]
[White "Goltsev, Dmitry"]
[Black "Lopez Gracia, Fernando"]
[WhiteFideId "24176710"]
[BlackFideId "2207184"]
[WhiteElo "2819"]
[BlackElo "2460"]
[Result "0-1"]
[Round "01"]
[TimeControl "180+1"]
[Date "2022.06.22"]
[WhiteClock "0:00:10"]
[BlackClock "0:00:51"]

1. e4 {[%clk 0:02:54]}  e5 {[%clk 0:02:59]} 2. Nf3 {[%clk 0:02:54]}  Nc6 {[%clk 0:02:59]} 3. Bb5 {[%clk 0:02:54]}  a6 {[%clk 0:02:59]} 4. Ba4 {[%clk 0:02:54]}  Nf6 {[%clk 0:02:56]} 5. O-O {[%clk 0:02:54]}  Bc5 {[%clk 0:02:56]} 6. Nxe5 {[%clk 0:02:54]}  Nxe5 {[%clk 0:02:53]} 7. d4 {[%clk 0:02:54]}  b5 {[%clk 0:02:53]} 8. dxe5 {[%clk 0:02:52]}  Nxe4 {[%clk 0:02:09]} 9. Qd5 {[%clk 0:02:42]}  Bb7 {[%clk 0:02:10]} 10. Qxb7 {[%clk 0:02:41]}  c6 {[%clk 0:02:10]} 11. Bb3 {[%clk 0:02:02]}  Ra7 {[%clk 0:02:08]} 12. Qxa7 {[%clk 0:02:00]}  Bxa7 {[%clk 0:02:08]} 13. Nd2 {[%clk 0:01:47]}  Nc5 {[%clk 0:02:08]} 14. Nf3 {[%clk 0:01:45]}  O-O {[%clk 0:02:03]} 15. Bg5 {[%clk 0:01:34]}  Qc7 {[%clk 0:02:02]} 16. Be7 {[%clk 0:01:30]}  Re8 {[%clk 0:02:00]} 17. Bd6 {[%clk 0:01:31]}  Qb6 {[%clk 0:01:56]} 18. Rad1 {[%clk 0:01:29]}  Nxb3 {[%clk 0:01:47]} 19. axb3 {[%clk 0:01:30]}  h6 {[%clk 0:01:46]} 20. Nd4 {[%clk 0:01:26]}  Bb8 {[%clk 0:01:46]} 21. Nf3 {[%clk 0:01:20]}  a5 {[%clk 0:01:43]} 22. Rfe1 {[%clk 0:01:17]}  Ba7 {[%clk 0:01:32]} 23. Re2 {[%clk 0:01:13]}  Qb7 {[%clk 0:01:32]} 24. Red2 {[%clk 0:01:11]}  c5 {[%clk 0:01:27]} 25. Rd5 {[%clk 0:01:01]}  Qc6 {[%clk 0:01:27]} 26. c4 {[%clk 0:00:58]}  b4 {[%clk 0:01:22]} 27. Nd2 {[%clk 0:00:51]}  a4 {[%clk 0:01:20]} 28. bxa4 {[%clk 0:00:47]}  Qxa4 {[%clk 0:01:21]} 29. Ne4 {[%clk 0:00:48]}  f6 {[%clk 0:01:12]} 30. Bxc5 {[%clk 0:00:44]}  Rxe5 {[%clk 0:01:07]} 31. f3 {[%clk 0:00:40]}  Bxc5+ {[%clk 0:01:01]} 32. Nxc5 {[%clk 0:00:40]}  Rxd5 {[%clk 0:00:58]} 33. Rxd5 {[%clk 0:00:40]}  Qa1+ {[%clk 0:00:58]} 34. Kf2 {[%clk 0:00:41]}  Qxb2+ {[%clk 0:00:59]} 35. Kg3 {[%clk 0:00:41]}  Qc3 {[%clk 0:00:55]} 36. Kh3 {[%clk 0:00:24]}  Qxc4 {[%clk 0:00:53]} 37. Rf5 {[%clk 0:00:18]}  d5 {[%clk 0:00:53]} 38. Ne6 {[%clk 0:00:16]}  d4 {[%clk 0:00:52]} 39. Nf4 {[%clk 0:00:11]}  d3 {[%clk 0:00:51]} 40. Rd5 {[%clk 0:00:10]}  Qxf4 {[%clk 0:00:50]} 41. Rxd3 {[%clk 0:00:10]}  Qf5+ {[%clk 0:00:51]} 0-1


[Site "https://www.chess.com"]

[Event "Titled Tuesday Blitz June 21 Late 2022"]
[White "Goltseva, Ekaterina"]
[Black "Jiganchine, Roman"]
[WhiteFideId "24173770"]
[BlackFideId "2603667"]
[WhiteElo "2086"]
[BlackElo "2213"]
[Result "1-0"]
[Round "01"]
[TimeControl "180+1"]
[Date "2022.06.22"]
[WhiteClock "0:00:10"]
[BlackClock "0:00:01"]

1. d4 {[%clk 0:02:59]}  d5 {[%clk 0:02:59]} 2. c4 {[%clk 0:02:58]}  e6 {[%clk 0:02:57]} 3. Nf3 {[%clk 0:02:57]}  Nf6 {[%clk 0:02:57]} 4. g3 {[%clk 0:02:57]}  c6 {[%clk 0:02:56]} 5. Bg2 {[%clk 0:02:58]}  Be7 {[%clk 0:02:56]} 6. O-O {[%clk 0:02:58]}  O-O {[%clk 0:02:56]} 7. Nc3 {[%clk 0:02:57]}  Nbd7 {[%clk 0:02:56]} 8. b3 {[%clk 0:02:56]}  b6 {[%clk 0:02:55]} 9. Qd3 {[%clk 0:02:56]}  Ba6 {[%clk 0:02:52]} 10. e4 {[%clk 0:02:52]}  Rc8 {[%clk 0:02:45]} 11. e5 {[%clk 0:02:50]}  Ne8 {[%clk 0:02:44]} 12. a4 {[%clk 0:02:45]}  Nc7 {[%clk 0:02:38]} 13. Be3 {[%clk 0:02:34]}  Re8 {[%clk 0:02:35]} 14. Rfd1 {[%clk 0:02:31]}  Nf8 {[%clk 0:02:27]} 15. h4 {[%clk 0:02:31]}  h6 {[%clk 0:02:25]} 16. h5 {[%clk 0:02:27]}  c5 {[%clk 0:02:08]} 17. Nb5 {[%clk 0:02:23]}  dxc4 {[%clk 0:01:52]} 18. bxc4 {[%clk 0:02:22]}  Bb7 {[%clk 0:01:24]} 19. Nxa7 {[%clk 0:02:16]}  Ra8 {[%clk 0:01:24]} 20. Nb5 {[%clk 0:02:15]}  Na6 {[%clk 0:01:19]} 21. Qe2 {[%clk 0:02:06]}  Qc8 {[%clk 0:01:07]} 22. d5 {[%clk 0:02:00]}  Nb4 {[%clk 0:00:45]} 23. Nh2 {[%clk 0:01:49]}  exd5 {[%clk 0:00:30]} 24. cxd5 {[%clk 0:01:50]}  c4 {[%clk 0:00:29]} 25. Bxb6 {[%clk 0:01:40]}  c3 {[%clk 0:00:27]} 26. d6 {[%clk 0:01:35]}  c2 {[%clk 0:00:24]} 27. Rdc1 {[%clk 0:01:21]}  Bg5 {[%clk 0:00:19]} 28. f4 {[%clk 0:01:08]}  Bxg2 {[%clk 0:00:19]} 29. Qxg2 {[%clk 0:01:07]}  Bd8 {[%clk 0:00:15]} 30. Bxd8 {[%clk 0:01:05]}  Qc5+ {[%clk 0:00:14]} 31. Kh1 {[%clk 0:01:00]}  Rexd8 {[%clk 0:00:13]} 32. Nc7 {[%clk 0:00:47]}  Rac8 {[%clk 0:00:12]} 33. Nf3 {[%clk 0:00:43]}  Ne6 {[%clk 0:00:12]} 34. Nxe6 {[%clk 0:00:33]}  fxe6 {[%clk 0:00:13]} 35. Qd2 {[%clk 0:00:31]}  Qc6 {[%clk 0:00:13]} 36. Kg2 {[%clk 0:00:29]}  Qc4 {[%clk 0:00:11]} 37. Nd4 {[%clk 0:00:15]}  Rc5 {[%clk 0:00:11]} 38. Nb5 {[%clk 0:00:11]}  Qe4+ {[%clk 0:00:11]} 39. Kh2 {[%clk 0:00:10]}  Nd3 {[%clk 0:00:11]} 40. Rxc2 {[%clk 0:00:09]}  Rxc2 {[%clk 0:00:10]} 41. Qxc2 {[%clk 0:00:10]}  Qf3 {[%clk 0:00:10]} 42. Qg2 {[%clk 0:00:10]}  Qxh5+ {[%clk 0:00:10]} 43. Kg1 {[%clk 0:00:07]}  Rc8 {[%clk 0:00:09]} 44. Nc7 {[%clk 0:00:06]}  Qg6 {[%clk 0:00:08]} 45. Rf1 {[%clk 0:00:07]}  Nc5 {[%clk 0:00:07]} 46. Qf3 {[%clk 0:00:07]}  Ne4 {[%clk 0:00:07]} 47. a5 {[%clk 0:00:07]}  Nxg3 {[%clk 0:00:06]} 48. Rf2 {[%clk 0:00:07]}  Ne4+ {[%clk 0:00:06]} 49. Rg2 {[%clk 0:00:07]}  Qf5 {[%clk 0:00:06]} 50. a6 {[%clk 0:00:08]}  g5 {[%clk 0:00:05]} 51. a7 {[%clk 0:00:08]}  Kh7 {[%clk 0:00:03]} 52. a8=Q {[%clk 0:00:08]}  Rxa8 {[%clk 0:00:03]} 53. Nxa8 {[%clk 0:00:09]}  gxf4 {[%clk 0:00:03]} 54. Nc7 {[%clk 0:00:08]}  Ng5 {[%clk 0:00:03]} 55. Qe2 {[%clk 0:00:06]}  Qb1+ {[%clk 0:00:03]} 56. Qf1 {[%clk 0:00:06]}  Qb6+ {[%clk 0:00:04]} 57. Kh1 {[%clk 0:00:05]}  f3 {[%clk 0:00:03]} 58. Rxg5 {[%clk 0:00:04]}  hxg5 {[%clk 0:00:03]} 59. Nxe6 {[%clk 0:00:04]}  Qc6 {[%clk 0:00:02]} 60. Nxg5+ {[%clk 0:00:04]}  Kg6 {[%clk 0:00:02]} 61. Nxf3 {[%clk 0:00:04]}  Qe4 {[%clk 0:00:02]} 62. Qg2+ {[%clk 0:00:04]}  Kf7 {[%clk 0:00:01]} 63. Kh2 {[%clk 0:00:05]}  Ke6 {[%clk 0:00:01]} 64. Ng5+ {[%clk 0:00:06]}  Kd5 {[%clk 0:00:01]} 65. Nxe4 {[%clk 0:00:07]}  Kxe5 {[%clk 0:00:01]} 66. Ng3 {[%clk 0:00:08]}  Kxd6 {[%clk 0:00:01]} 67. Qe4 {[%clk 0:00:09]}  Kd7 {[%clk 0:00:01]} 68. Nf5 {[%clk 0:00:09]}  Kc7 {[%clk 0:00:01]} 69. Qe6 {[%clk 0:00:10]} 1-0


[Site "https://www.chess.com"]

[Event "Titled Tuesday Blitz June 21 Late 2022"]
[White "Golubev, Mikhail"]
[Black "Keymer, Vincent"]
[WhiteFideId "14100983"]
[BlackFideId "12940690"]
[WhiteElo "2374"]
[BlackElo "2548"]
[Result "0-1"]
[Round "01"]
[TimeControl "180+1"]
[Date "2022.06.21"]
[WhiteClock "0:00:01"]
[BlackClock "0:00:40"]

1. e4 {[%clk 0:03:00]}  c6 {[%clk 0:03:00]} 2. Nf3 {[%clk 0:02:59]}  d5 {[%clk 0:03:01]} 3. Nc3 {[%clk 0:02:59]}  dxe4 {[%clk 0:03:00]} 4. Nxe4 {[%clk 0:02:58]}  Nf6 {[%clk 0:03:01]} 5. Qe2 {[%clk 0:02:56]}  Nxe4 {[%clk 0:03:01]} 6. Qxe4 {[%clk 0:02:57]}  Nd7 {[%clk 0:03:01]} 7. Bc4 {[%clk 0:02:56]}  Nf6 {[%clk 0:03:02]} 8. Ne5 {[%clk 0:02:56]}  e6 {[%clk 0:03:02]} 9. Qe2 {[%clk 0:02:55]}  b5 {[%clk 0:03:02]} 10. Bb3 {[%clk 0:02:55]}  Qc7 {[%clk 0:03:02]} 11. d4 {[%clk 0:02:50]}  Bd6 {[%clk 0:03:02]} 12. a4 {[%clk 0:02:28]}  O-O {[%clk 0:02:52]} 13. O-O {[%clk 0:02:19]}  b4 {[%clk 0:02:34]} 14. Bf4 {[%clk 0:02:08]}  a5 {[%clk 0:02:28]} 15. Rfe1 {[%clk 0:02:02]}  c5 {[%clk 0:02:02]} 16. dxc5 {[%clk 0:01:57]}  Qxc5 {[%clk 0:02:02]} 17. Rad1 {[%clk 0:01:37]}  Bc7 {[%clk 0:01:53]} 18. Qf3 {[%clk 0:00:39]}  Rb8 {[%clk 0:01:50]} 19. Nc6 {[%clk 0:00:30]}  Bxf4 {[%clk 0:01:24]} 20. Qxf4 {[%clk 0:00:31]}  Rb6 {[%clk 0:01:12]} 21. Ne5 {[%clk 0:00:24]}  Bb7 {[%clk 0:01:02]} 22. Nc4 {[%clk 0:00:22]}  Ra6 {[%clk 0:00:58]} 23. Nd6 {[%clk 0:00:18]}  Bd5 {[%clk 0:00:55]} 24. Nc4 {[%clk 0:00:03]}  h6 {[%clk 0:00:51]} 25. Ne3 {[%clk 0:00:03]}  Bxb3 {[%clk 0:00:49]} 26. cxb3 {[%clk 0:00:04]}  Rc8 {[%clk 0:00:49]} 27. h3 {[%clk 0:00:01]}  Qg5 {[%clk 0:00:40]} 0-1


[Site "https://www.chess.com"]

[Event "Titled Tuesday Blitz June 21 Late 2022"]
[White "Gubajdullin, Alexei"]
[Black "So, Wesley"]
[WhiteFideId "4141202"]
[BlackFideId "5202213"]
[WhiteElo "2280"]
[BlackElo "2742"]
[Result "0-1"]
[Round "01"]
[TimeControl "180+1"]
[Date "2022.06.21"]
[WhiteClock "0:00:07"]
[BlackClock "0:00:38"]

1. c4 {[%clk 0:02:58]}  e5 {[%clk 0:02:55]} 2. Nc3 {[%clk 0:02:57]}  Nf6 {[%clk 0:02:54]} 3. g3 {[%clk 0:02:56]}  Bb4 {[%clk 0:02:53]} 4. Bg2 {[%clk 0:02:46]}  O-O {[%clk 0:02:52]} 5. Nf3 {[%clk 0:02:45]}  e4 {[%clk 0:02:49]} 6. Nd4 {[%clk 0:02:45]}  Nc6 {[%clk 0:02:49]} 7. Nc2 {[%clk 0:02:44]}  Bxc3 {[%clk 0:02:48]} 8. dxc3 {[%clk 0:02:43]}  h6 {[%clk 0:02:49]} 9. O-O {[%clk 0:02:43]}  d6 {[%clk 0:02:49]} 10. Ne3 {[%clk 0:02:42]}  Re8 {[%clk 0:02:48]} 11. Nd5 {[%clk 0:02:41]}  Bf5 {[%clk 0:02:36]} 12. b3 {[%clk 0:02:36]}  Ne5 {[%clk 0:02:22]} 13. h3 {[%clk 0:02:33]}  b6 {[%clk 0:02:19]} 14. Kh2 {[%clk 0:02:32]}  a5 {[%clk 0:02:17]} 15. f3 {[%clk 0:02:29]}  exf3 {[%clk 0:02:13]} 16. exf3 {[%clk 0:02:28]}  a4 {[%clk 0:01:58]} 17. Bd2 {[%clk 0:02:18]}  Nd3 {[%clk 0:01:42]} 18. Nf4 {[%clk 0:01:56]}  Nxf4 {[%clk 0:01:33]} 19. Bxf4 {[%clk 0:01:54]}  g5 {[%clk 0:01:23]} 20. Bd2 {[%clk 0:01:52]}  axb3 {[%clk 0:01:23]} 21. axb3 {[%clk 0:01:52]}  Rxa1 {[%clk 0:01:20]} 22. Qxa1 {[%clk 0:01:51]}  Re2 {[%clk 0:01:19]} 23. Qd1 {[%clk 0:01:44]}  Qe7 {[%clk 0:01:19]} 24. Re1 {[%clk 0:01:44]}  Rxe1 {[%clk 0:01:18]} 25. Qxe1 {[%clk 0:01:44]}  Qxe1 {[%clk 0:01:16]} 26. Bxe1 {[%clk 0:01:44]}  Bc2 {[%clk 0:01:11]} 27. b4 {[%clk 0:01:44]}  Nd7 {[%clk 0:01:09]} 28. Bf1 {[%clk 0:01:37]}  Ne5 {[%clk 0:01:09]} 29. Kg2 {[%clk 0:01:34]}  Bd3 {[%clk 0:01:09]} 30. Bxd3 {[%clk 0:00:59]}  Nxd3 {[%clk 0:01:10]} 31. Kf1 {[%clk 0:00:57]}  Ne5 {[%clk 0:01:07]} 32. c5 {[%clk 0:00:56]}  bxc5 {[%clk 0:00:59]} 33. bxc5 {[%clk 0:00:56]}  Nxf3 {[%clk 0:00:59]} 34. cxd6 {[%clk 0:00:53]}  cxd6 {[%clk 0:01:00]} 35. Bf2 {[%clk 0:00:52]}  Kg7 {[%clk 0:00:59]} 36. Ke2 {[%clk 0:00:51]}  Ne5 {[%clk 0:00:59]} 37. Ke3 {[%clk 0:00:49]}  Kf6 {[%clk 0:00:59]} 38. Ke4 {[%clk 0:00:37]}  Ke6 {[%clk 0:00:59]} 39. g4 {[%clk 0:00:37]}  d5+ {[%clk 0:00:56]} 40. Kd4 {[%clk 0:00:34]}  Ng6 {[%clk 0:00:56]} 41. c4 {[%clk 0:00:24]}  dxc4 {[%clk 0:00:57]} 42. Kxc4 {[%clk 0:00:24]}  Ke5 {[%clk 0:00:55]} 43. Kc5 {[%clk 0:00:19]}  Kf4 {[%clk 0:00:51]} 44. Bd4 {[%clk 0:00:17]}  Kg3 {[%clk 0:00:48]} 45. Bg7 {[%clk 0:00:17]}  Kxh3 {[%clk 0:00:49]} 46. Bxh6 {[%clk 0:00:17]}  Kxg4 {[%clk 0:00:49]} 47. Kd4 {[%clk 0:00:16]}  Kf5 {[%clk 0:00:45]} 48. Ke3 {[%clk 0:00:16]}  f6 {[%clk 0:00:44]} 49. Kf3 {[%clk 0:00:14]}  Ne5+ {[%clk 0:00:38]} 50. Kg3 {[%clk 0:00:14]}  Nd7 {[%clk 0:00:39]} 51. Bg7 {[%clk 0:00:08]}  Kg6 {[%clk 0:00:38]} 52. Bh8 {[%clk 0:00:07]}  Kh7 {[%clk 0:00:38]} 0-1


[Site "https://www.chess.com"]